bitfinex/quotes_ETHUSD_20240816
["timestamp","ask_amount","ask_price","bid_price","bid_amount"]
[1723836230630,3.80924,2625.2,2624.7,3.80989]
[1723836230810,3.80924,2625.2,2624.7,5.41840852]
[1723836231375,3.80938,2625.1,2624.7,1.60851852]
[1723836231578,3.80967,2624.9,2624.5,7.32]
[1723836232195,6.21142,2625.0,2624.5,7.32]
[1723836232404,6.21142,2625.0,2624.5,11.13016]
[1723836232405,3.80952,2625.0,2624.5,11.13016]
[1723836232604,3.80946,2625.1,2624.5,11.13016]
[1723836232605,3.80946,2625.1,2624.6,1.494044]
[1723836232813,3.80946,2625.1,2624.6,5.304134]
[1723836232978,6.16388,2625.3,2624.6,5.304064]
[1723836232979,3.80924,2625.2,2624.6,5.304064]
[1723836233183,3.80924,2625.2,2624.7,5.0722934]
[1723836233419,3.80924,2625.2,2624.7,3.80988]
[1723836233821,3.80939,2625.1,2624.5,11.13012]
[1723836234027,3.80939,2625.1,2624.5,12.6564372]
[1723836234188,3.80939,2625.1,2624.6,3.88994152]
[1723836235042,6.16386,2625.3,2624.6,0.07985152]
[1723836235043,3.80991,2624.8,2624.6,0.07985152]
[1723836235201,3.8099,2624.8,2624.6,0.07985152]
[1723836236913,3.80971,2624.9,2624.6,0.07985152]
[1723836237601,3.80947,2625.1,2624.6,6.33475152]
[1723836237822,3.80925,2625.2,2624.6,7.45576767]
[1723836238038,3.80945,2625.1,2624.6,7.45576767]
[1723836238205,3.80952,2625.0,2624.7,0.89538202]
[1723836238405,3.80952,2625.0,2624.7,0.97521435]
[1723836239009,3.80925,2625.2,2624.7,0.97521435]
[1723836239456,3.80925,2625.2,2624.7,4.78514435]
[1723836239777,3.80902,2625.4,2624.8,6.76846205]
[1723836240066,7.61809,2625.4,2624.8,4.40042205]
[1723836240368,3.80902,2625.4,2624.9,0.07963505]
[1723836240872,3.80874,2625.6,2625.0,6.11873]
[1723836241009,3.8085,2625.7,2625.2,3.80915]
[1723836241208,3.8085,2625.7,2625.3,0.380915]
[1723836241459,3.8085,2625.7,2625.3,0.07919668]
[1723836241655,3.8085,2625.7,2625.2,3.80915]
[1723836241835,3.8085,2625.7,2625.4,0.07908974]
[1723836242041,3.8085,2625.7,2625.2,3.80915]
[1723836242242,3.8085,2625.7,2625.5,0.07898281]
[1723836242431,3.8085,2625.7,2625.2,3.80915]
[1723836242637,3.8085,2625.7,2625.6,0.07887589]
[1723836243008,3.8085,2625.7,2625.2,3.80915]
[1723836243237,3.8085,2625.7,2625.6,0.07887589]
[1723836243410,3.80896,2625.4,2624.9,3.80966]
[1723836243648,7.61798,2625.4,2624.9,6.19339939]
[1723836243856,3.8088,2625.5,2625.0,1.35133994]
[1723836244025,3.80875,2625.6,2625.0,5.16075994]
[1723836244208,3.80892,2625.5,2625.1,1.13540893]
[1723836244550,3.80892,2625.5,2624.9,10.00287939]
[1723836244767,3.80909,2625.3,2624.9,2.38373939]
[1723836244909,3.80909,2625.3,2624.8,11.1298]
[1723836244910,3.80923,2625.2,2624.8,11.1298]
[1723836245109,3.80909,2625.3,2624.8,11.1298]
[1723836245364,3.80909,2625.3,2624.8,14.37366]
[1723836246112,3.80909,2625.3,2624.9,3.80964]
[1723836246422,3.80909,2625.3,2624.9,3.80966]
[1723836246580,3.80924,2625.2,2624.8,10.56386]
[1723836246911,3.80924,2625.2,2624.8,7.32]
[1723836248119,3.80924,2625.2,2624.8,11.12979]
[1723836248283,3.80907,2625.4,2624.8,3.80979]
[1723836248487,3.80857,2625.7,2625.0,3.8095]
[1723836248797,3.80857,2625.7,2624.7,6.13856]
[1723836248798,3.80857,2625.7,2625.2,7.61834]
[1723836248996,3.80822,2625.9,2625.4,3.80889]
[1723836249522,3.80822,2625.9,2625.5,0.07894681]
[1723836249523,3.80836,2625.8,2625.5,0.07894681]
[1723836250024,7.61723,2625.7,2625.5,0.07894681]
[1723836250239,2.4343,2625.6,2624.9,7.32]
[1723836250428,2.4343,2625.6,2624.4,4.59975873]
[1723836250429,3.80944,2625.1,2624.6,26.29999]
[1723836250573,3.80944,2625.1,2624.6,11.12999]
[1723836250771,3.80944,2625.1,2624.6,12.863969]
[1723836251103,3.80881,2625.5,2624.6,12.863969]
[1723836251297,3.80946,2625.1,2624.6,11.12999]
[1723836251713,3.80946,2625.1,2624.7,3.80995]
[1723836251904,7.61894,2625.1,2624.6,7.32]
[1723836252074,3.80946,2625.1,2624.6,7.32]
[1723836252422,3.80961,2625.0,2624.6,7.32]
[1723836252714,3.80961,2625.0,2624.5,6.20966]
[1723836252938,7.61895,2625.1,2624.5,6.20963]
[1723836253237,3.80946,2625.1,2624.5,10.0198]
[1723836253470,7.61892,2625.1,2624.5,6.20963]
[1723836253616,0.991092,2625.1,2624.3,7.32]
[1723836253817,3.8099,2624.8,2624.2,6.14557]
[1723836254032,3.80977,2624.9,2624.2,6.14551]
[1723836254197,3.80917,2625.3,2624.7,6.14476]
[1723836254393,3.80917,2625.3,2624.7,6.759236]
[1723836254636,3.80931,2625.2,2624.7,6.759236]
[1723836254843,3.80931,2625.2,2624.7,6.14476]
[1723836254992,3.80931,2625.2,2624.7,2.3349]
[1723836255199,2.4918,2625.5,2624.3,0.55268584]
[1723836255200,2.4918,2624.7,2624.3,0.55268584]
[1723836255409,7.62078,2624.4,2624.0,0.78938873]
[1723836255757,7.62078,2624.4,2623.4,3.31210693]
[1723836255758,3.81115,2623.9,2623.6,2.3349]
[1723836256044,3.81107,2624.0,2623.7,0.23349]
[1723836256264,7.62185,2624.1,2623.7,0.23349]
[1723836256407,3.81091,2624.1,2623.7,0.23349]
[1723836257859,3.8106,2624.3,2623.7,0.23349]
[1723836258921,3.81141,2623.7,2623.6,2.3349]
[1723836259234,3.81141,2623.7,2623.2,2.3764]
[1723836259235,3.81149,2623.7,2623.2,2.3764]
[1723836259435,3.81158,2623.6,2623.3,0.23764]
[1723836260749,3.8113,2623.8,2623.3,0.23764]
[1723836260965,3.81082,2624.2,2623.3,0.23764]
[1723836261259,3.81102,2624.0,2623.4,3.81182]
[1723836261450,3.81102,2624.0,2623.5,0.404946]
[1723836261656,3.81039,2624.4,2623.6,6.19282]
[1723836261981,2.4888,2624.7,2623.6,2.3813]
[1723836261982,3.81025,2624.5,2623.6,2.3813]
[1723836262184,3.81001,2624.7,2624.1,3.81072]
[1723836262352,3.80973,2624.9,2624.2,0.381072]
[1723836262897,3.80941,2625.1,2624.3,2.469]
[1723836263098,3.80811,2626.0,2624.7,2.469]
[1723836263099,3.80916,2625.3,2624.7,2.469]
[1723836263305,3.8087,2625.6,2624.7,2.469]
[1723836263603,2.4282,2625.8,2624.7,6.27883]
[1723836263604,3.80892,2625.5,2624.7,6.27883]
[1723836263809,2.4282,2625.8,2624.7,6.27883]
[1723836263810,7.6172,2625.7,2624.9,3.80958]
[1723836263954,3.80866,2625.6,2624.9,3.80957]
[1723836264194,3.80866,2625.6,2625.0,1.1757453]
[1723836264399,3.80882,2625.5,2625.0,1.25269641]
[1723836264711,3.80866,2625.6,2625.0,3.88643111]
[1723836264904,3.80882,2625.5,2625.0,0.07695111]
[1723836266443,3.80909,2625.3,2625.0,0.07695111]
[1723836266596,7.61773,2625.5,2625.0,0.07695111]
[1723836266802,3.80919,2625.3,2625.0,0.07695111]
[1723836267198,3.80925,2625.2,2625.0,0.39433452]
[1723836267397,7.61874,2625.1,2625.0,0.07695111]
[1723836267742,7.61874,2625.1,2624.4,0.2850072]
[1723836267743,3.80957,2625.0,2624.4,7.0953272]
[1723836267899,3.80957,2625.0,2624.5,1.33747272]
[1723836268095,3.80937,2625.1,2624.5,5.14770272]
[1723836268296,7.61885,2625.1,2624.5,5.14770272]
[1723836268500,3.80953,2625.0,2624.5,1.33747272]
[1723836268821,3.80966,2624.9,2624.5,1.33747272]
[1723836269438,3.80937,2625.1,2624.5,1.33747272]
[1723836269749,3.80937,2625.1,2624.6,0.46224799]
[1723836270524,7.61882,2625.1,2624.6,0.46224799]
[1723836270732,3.80937,2625.1,2624.6,0.46224799]
[1723836271901,3.80954,2625.0,2624.6,0.46224799]
[1723836272338,3.80969,2624.9,2624.5,1.33747272]
[1723836272539,3.80969,2624.9,2624.4,3.0]
[1723836273079,3.80947,2625.1,2624.5,3.81024]
[1723836273248,3.80901,2625.4,2624.8,3.80973]
[1723836273601,3.80889,2625.5,2624.8,3.80973]
[1723836273602,7.61778,2625.5,2624.8,3.80973]
[1723836273843,3.80889,2625.5,2624.8,3.80973]
[1723836274072,3.80889,2625.5,2624.9,3.80963]
[1723836274206,3.80889,2625.5,2625.0,3.80952]
[1723836274531,3.80889,2625.5,2624.9,3.80958]
[1723836274729,3.80889,2625.5,2625.0,4.2914655]
[1723836274935,6.12718,2625.7,2625.1,2.2988]
[1723836274936,3.80858,2625.7,2625.1,2.2988]
[1723836275108,3.80873,2625.6,2625.1,2.2988]
[1723836275506,3.80858,2625.7,2625.1,6.10817]
[1723836275731,3.80858,2625.7,2625.1,7.14813555]
[1723836275947,3.80882,2625.5,2625.1,2.2988]
[1723836276155,3.80882,2625.5,2624.9,3.80957]
[1723836276452,3.8091,2625.3,2624.8,2.2988]
[1723836276651,3.8091,2625.3,2624.8,5.2988]
[1723836276837,3.8091,2625.3,2624.9,0.70640549]
[1723836277033,3.8091,2625.3,2624.8,3.0]
[1723836277559,3.8091,2625.3,2624.7,3.80987]
[1723836279346,3.80932,2625.2,2624.8,0.07706345]
[1723836279503,3.8091,2625.3,2624.8,0.07706345]
[1723836279709,7.61827,2625.3,2624.7,3.80995]
[1723836279917,3.8091,2625.3,2624.8,0.07706345]
[1723836280118,3.8091,2625.3,2624.7,5.116756]
[1723836280361,3.8091,2625.3,2624.8,0.07706345]
[1723836280576,3.80902,2625.4,2624.8,0.8412454]
[1723836280862,3.80902,2625.4,2624.8,4.57398195]
[1723836281065,3.80902,2625.4,2624.9,0.07695647]
[1723836281618,9.99174,2625.0,2624.9,0.07695647]
[1723836282158,9.99174,2625.0,2624.3,7.32]
[1723836282159,7.62078,2624.4,2624.3,7.32]
[1723836282462,7.62078,2624.4,2623.6,3.81148]
[1723836282463,3.8107,2624.2,2623.8,7.32]
[1723836282768,3.81048,2624.4,2623.8,11.13126]
[1723836283030,3.81048,2624.4,2623.9,2.947456]
[1723836283503,6.1829,2624.6,2623.9,2.947456]
[1723836283702,6.1829,2624.6,2623.9,3.81098]
[1723836284075,6.1829,2624.6,2623.7,2.3619]
[1723836284282,3.81063,2624.3,2623.7,9.98447]
[1723836284681,3.81063,2624.3,2623.7,6.17316]
[1723836284860,3.81063,2624.3,2623.8,0.617316]
[1723836285188,3.81052,2624.4,2623.8,0.617316]
[1723836285370,3.81057,2624.3,2623.8,0.617316]
[1723836286407,3.81071,2624.2,2623.8,0.617316]
[1723836286618,3.81071,2624.2,2623.7,2.3619]
[1723836286819,3.81071,2624.2,2623.7,6.17328]
[1723836287027,7.62104,2624.4,2623.7,6.17328]
[1723836287216,3.81048,2624.4,2623.8,3.81125]
[1723836287419,3.81048,2624.4,2623.9,0.998445]
[1723836288926,7.62098,2624.4,2623.9,0.998445]
[1723836289133,7.62098,2624.4,2623.7,6.1732]
[1723836289134,3.81065,2624.3,2623.7,6.1732]
[1723836289306,3.81125,2623.9,2623.4,2.4244]
[1723836289478,3.81125,2623.9,2623.3,0.59759691]
[1723836289479,3.81144,2623.7,2623.3,0.59759691]
[1723836289929,3.81144,2623.7,2623.1,6.23658]
[1723836289930,3.81164,2623.6,2623.1,2.4244]
[1723836290133,3.81164,2623.6,2622.8,2.4244]
[1723836290134,3.81199,2623.3,2622.8,2.4244]
[1723836290791,7.62407,2623.3,2622.8,2.4244]
[1723836290988,3.81223,2623.2,2622.5,6.23744]
[1723836291189,3.81223,2623.2,2622.6,4.194274]
[1723836291376,7.62408,2623.3,2622.6,4.194274]
[1723836291577,3.81222,2623.2,2622.7,1.0431714]
[1723836292581,3.81243,2623.0,2622.4,3.81328]
[1723836292980,3.81263,2622.9,2622.3,3.81336]
[1723836293206,3.81235,2623.1,2622.5,3.81311]
[1723836293411,3.81235,2623.1,2622.6,0.381311]
[1723836293599,2.2591,2623.2,2622.6,4.194241]
[1723836293929,3.81221,2623.2,2622.6,4.194241]
[1723836294423,3.81221,2623.2,2622.7,0.07666085]
[1723836294793,3.81228,2623.1,2622.7,0.07666085]
[1723836295275,3.81228,2623.1,2622.5,3.81306]
[1723836295505,6.07102,2623.4,2622.6,2.50116801]
[1723836295690,3.81199,2623.3,2622.6,6.31405801]
[1723836295903,3.81199,2623.3,2622.6,10.75839381]
[1723836296080,3.81199,2623.3,2622.6,6.94546381]
[1723836296515,3.81199,2623.3,2622.6,10.75836381]
[1723836296732,3.81199,2623.3,2622.6,6.94546381]
[1723836296893,3.81199,2623.3,2622.7,3.81278]
[1723836297096,3.81199,2623.3,2622.8,1.15254925]
[1723836297883,3.81214,2623.2,2622.8,1.15254925]
[1723836298085,3.81214,2623.2,2622.8,0.07672487]
[1723836298279,3.81214,2623.2,2622.6,6.8686958]
[1723836298791,3.81214,2623.2,2622.7,0.07683202]
[1723836299423,3.81263,2622.9,2622.7,0.07683202]
[1723836299725,3.81263,2622.9,2622.4,7.32]
[1723836300083,3.81263,2622.9,2622.5,0.0771124]
[1723836300815,3.81272,2622.8,2622.5,0.0771124]
[1723836301487,3.81296,2622.7,2622.5,0.0771124]
[1723836301820,3.81243,2623.0,2622.5,0.0771124]
[1723836302012,3.81243,2623.0,2622.5,0.81682364]
[1723836302930,3.81259,2622.9,2622.5,0.81682364]
[1723836303148,3.81243,2623.0,2622.5,0.0771124]
[1723836303353,3.81213,2623.2,2622.6,6.2374]
[1723836303553,3.81205,2623.3,2622.7,0.07693199]
[1723836303554,3.81232,2623.1,2622.7,0.07693199]
[1723836304319,3.81232,2623.1,2622.6,3.81299]
[1723836304527,3.81264,2622.9,2622.7,0.07693199]
[1723836304834,3.81264,2622.9,2622.3,3.81343]
[1723836305320,3.81264,2622.9,2622.4,0.07725349]
[1723836306562,3.81279,2622.8,2622.4,0.07725349]
[1723836306718,3.81279,2622.8,2622.2,3.81345]
[1723836306918,3.81279,2622.8,2622.0,14.1338]
[1723836306919,2.4313,2622.7,2622.3,0.07736067]
[1723836307120,2.4313,2622.7,2622.0,7.32]
[1723836307121,3.81338,2622.4,2622.0,7.32]
[1723836307482,3.81338,2622.4,2621.4,2.2869]
[1723836307483,10.05872,2622.2,2622.1,0.07759856]
[1723836307764,19.10443,2622.2,2622.1,0.07759856]
[1723836307920,19.10443,2622.2,2621.1,2.2869]
[1723836307921,3.81436,2621.7,2621.1,6.10208]
[1723836308116,6.24566,2621.7,2621.1,1.342208]
[1723836308320,3.81468,2621.5,2621.1,1.342208]
[1723836309366,7.62885,2621.7,2621.2,0.07579238]
[1723836309559,3.81441,2621.7,2621.2,0.94201318]
[1723836309827,3.81458,2621.6,2621.2,0.07579238]
[1723836311048,3.81461,2621.5,2621.2,0.07579238]
[1723836311255,3.81441,2621.7,2621.2,0.07579238]
[1723836311256,3.81449,2621.6,2621.2,0.07579238]
[1723836311457,7.62883,2621.7,2621.0,7.32]
[1723836311767,3.81432,2621.7,2621.2,3.81496]
[1723836312062,3.81432,2621.7,2621.1,1.495062]
[1723836312063,3.81487,2621.4,2621.1,0.07589966]
[1723836312262,3.8149,2621.3,2620.8,5.2869]
[1723836312467,3.81505,2621.2,2620.8,3.0]
[1723836312688,3.81505,2621.2,2620.9,2.47769]
[1723836312989,3.81519,2621.1,2620.7,19.49]
[1723836313187,3.81534,2621.0,2620.5,6.10285]
[1723836313390,3.81505,2621.2,2620.6,0.67010117]
[1723836313591,3.8152,2621.1,2620.6,0.67010117]
[1723836314085,3.81505,2621.2,2620.6,0.67010117]
[1723836314399,3.81519,2621.1,2620.6,0.67010117]
[1723836314543,7.63021,2621.2,2620.7,0.83020312]
[1723836314739,3.81505,2621.2,2620.7,0.83020312]
[1723836315093,3.81505,2621.2,2620.3,11.13628]
[1723836315094,3.93,2621.2,2620.3,11.13628]
[1723836315393,3.93,2621.2,2620.0,15.98675]
[1723836315394,3.81593,2620.6,2620.0,15.98675]
[1723836315551,3.81593,2620.6,2620.0,3.81675]
[1723836315737,3.81593,2620.6,2620.1,3.81663]
[1723836315935,7.63144,2620.8,2620.0,1.342376]
[1723836316135,3.81568,2620.8,2620.1,5.2931746]
[1723836316339,2.49767806,2621.1,2619.9,9.6069]
[1723836316340,3.81614,2620.5,2619.9,3.81686]
[1723836316572,3.93,2620.9,2620.1,3.81664]
[1723836316573,6.3613,2620.9,2620.1,3.81664]
[1723836316779,3.81579,2620.7,2620.1,3.81664]
[1723836317207,3.81579,2620.7,2620.0,0.381686]
[1723836317710,3.81601,2620.6,2620.1,0.6250275]
[1723836317912,3.81601,2620.6,2619.9,7.63365]
[1723836318095,3.81601,2620.6,2619.9,3.8168]
[1723836318257,3.81592,2620.6,2619.9,3.8168]
[1723836318596,3.81592,2620.6,2620.0,4.19837]
[1723836319284,3.81592,2620.6,2620.0,0.38168]
[1723836319808,7.63146,2620.8,2620.1,3.81655]
[1723836319968,3.81571,2620.8,2620.1,3.81655]
[1723836320301,3.81571,2620.8,2620.1,6.20885]
[1723836320511,3.8158,2620.7,2620.1,6.829735]
[1723836320763,3.8158,2620.7,2620.1,10.646295]
[1723836320926,7.63144,2620.8,2620.1,6.829735]
[1723836321210,7.63142,2620.8,2620.1,6.829735]
[1723836321396,3.81571,2620.8,2620.1,6.829735]
[1723836321603,3.81571,2620.8,2620.1,4.437435]
[1723836322684,3.81585,2620.7,2620.1,4.437435]
[1723836322885,3.81585,2620.7,2620.1,0.620885]
[1723836323090,3.81585,2620.7,2619.5,3.0]
[1723836323091,3.81639,2620.3,2619.7,3.81711]
[1723836323315,6.19969,2620.4,2619.8,4.198701]
[1723836323476,2.3834,2620.7,2619.8,0.381711]
[1723836323681,3.81608,2620.5,2620.0,3.81673]
[1723836323993,3.81604,2620.6,2620.0,3.81673]
[1723836324303,2.3834,2621.0,2620.1,2.38500272]
[1723836324712,3.81513,2621.2,2620.5,3.81598]
[1723836324878,3.81522,2621.1,2620.6,0.381598]
[1723836325082,2.3834,2621.3,2620.6,2.689398]
[1723836325083,6.1983,2621.3,2620.6,2.689398]
[1723836325316,6.1983,2621.3,2620.7,3.89231867]
[1723836326023,2.3834,2621.3,2620.7,0.07655867]
[1723836326326,3.81509,2621.2,2620.7,0.69657554]
[1723836326526,3.81509,2621.2,2620.7,0.07655867]
[1723836326677,6.19839,2621.3,2620.7,0.07655867]
[1723836327393,7.63051,2621.1,2620.7,0.07655867]
[1723836327618,6.19839,2621.3,2620.7,0.07655867]
[1723836327816,6.19839,2621.3,2620.7,0.38924687]
[1723836327985,10.01341,2621.3,2620.7,4.20500687]
[1723836328182,3.8147,2621.5,2620.8,3.89194136]
[1723836328501,6.11174,2621.6,2621.0,3.81524]
[1723836328694,2.2972,2621.6,2621.1,3.81513]
[1723836328922,0.06633199,2622.0,2621.4,3.81472]
[1723836329125,3.81414,2621.9,2621.3,3.81488]
[1723836329422,3.81414,2621.9,2621.5,0.07570039]
[1723836329423,3.81429,2621.8,2621.5,0.07570039]
[1723836329633,3.8146,2621.5,2621.4,0.07580765]
[1723836329782,7.62935,2621.5,2620.9,3.81544]
[1723836329982,3.81505,2621.2,2620.6,11.13582]
[1723836330184,3.81504,2621.3,2620.7,3.81574]
[1723836330385,3.81468,2621.5,2620.6,11.13582]
[1723836330386,4.818835,2621.5,2620.9,3.81534]
[1723836330634,7.62939,2621.5,2620.9,3.81534]
[1723836330831,3.81506,2621.2,2620.6,14.95163]
[1723836331038,7.62961,2621.4,2620.6,11.13581]
[1723836331184,3.81477,2621.4,2620.8,3.81561]
[1723836331584,3.81477,2621.4,2620.9,3.81546]
[1723836331935,2.2972,2621.6,2621.1,3.81509]
[1723836332295,6.11167,2621.6,2620.9,6.15154]
[1723836332630,3.81465,2621.5,2620.9,4.430494]
[1723836333183,6.11167,2621.6,2621.0,3.81531]
[1723836333530,6.11167,2621.6,2621.1,3.81515]
[1723836333885,7.4577,2622.0,2621.4,3.81473]
[1723836334204,6.13748,2622.2,2621.4,3.81461]
[1723836334525,3.81388,2622.0,2621.5,0.381461]
[1723836334729,9.95116,2622.2,2621.5,4.196041]
[1723836334887,6.13743,2622.2,2621.6,0.8010651]
[1723836335087,9.9511,2622.2,2621.6,0.8010651]
[1723836335770,6.13743,2622.2,2621.6,4.6154851]
[1723836335924,6.13743,2622.2,2621.6,0.8010651]
[1723836336103,3.81383,2622.1,2621.6,0.8010651]
[1723836336423,6.13743,2622.2,2621.6,4.6155051]
[1723836336631,3.81453,2621.6,2621.2,7.32]
[1723836336942,3.81395,2622.0,2621.2,3.81493]
[1723836337087,7.62791,2622.0,2621.4,3.81472]
[1723836337287,3.81395,2622.0,2621.4,3.81472]
[1723836337604,3.81425,2621.8,2621.2,3.81491]
[1723836337812,2.4403,2621.6,2621.0,7.63048]
[1723836338015,6.25477,2621.6,2621.1,0.763048]
[1723836338203,6.25477,2621.6,2621.0,3.81523]
[1723836338605,6.25477,2621.6,2621.0,7.63049]
[1723836338802,6.25477,2621.6,2621.0,3.81523]
[1723836338988,2.4403,2621.6,2621.1,3.81509]
[1723836339220,2.4403,2621.6,2621.2,4.578052]
[1723836339555,2.4403,2621.6,2621.2,3.88092299]
[1723836339965,3.81425,2621.8,2621.2,3.88092299]
[1723836340262,3.81425,2621.8,2621.3,3.81487]
[1723836340416,3.81425,2621.8,2621.2,3.88082299]
[1723836340613,7.62851,2621.8,2621.4,0.06568845]
[1723836340815,3.81425,2621.8,2621.3,0.06579572]
[1723836341126,3.81425,2621.8,2621.4,0.06568845]
[1723836341519,3.81425,2621.8,2621.3,3.81488]
[1723836341715,0.06631688,2622.4,2621.3,3.81488]
[1723836341716,6.26451,2622.2,2621.5,0.06558119]
[1723836341915,6.26451,2622.2,2621.3,2.869804]
[1723836341916,3.81383,2622.1,2621.4,3.81461]
[1723836342229,6.89759269,2622.2,2621.6,0.06547395]
[1723836342429,2.4509,2622.2,2621.6,3.81445]
[1723836342627,2.4509,2622.2,2621.7,3.87960671]
[1723836342882,3.81374,2622.1,2621.7,0.06536671]
[1723836343046,0.626464,2622.0,2621.7,0.06536671]
[1723836343214,3.81402,2622.0,2621.3,7.62969]
[1723836343415,3.81409,2621.9,2621.8,0.06525947]
[1723836343614,4.195492,2621.9,2621.3,3.8148]
[1723836343862,4.195492,2621.9,2621.8,0.06525947]
[1723836344013,3.81409,2621.9,2621.3,3.8148]
[1723836344212,3.81409,2621.9,2621.8,0.06525947]
[1723836344454,3.81426,2621.8,2621.2,11.13501]
[1723836344760,3.81409,2621.9,2620.3,0.78938873]
[1723836344761,2.3567,2621.4,2620.7,9.7949]
[1723836344964,2.973844,2621.4,2620.9,3.8154]
[1723836345266,6.17112,2621.7,2621.1,7.63028]
[1723836345416,6.17112,2621.7,2621.2,0.763028]
[1723836345754,6.17112,2621.7,2620.9,3.81539]
[1723836345755,3.81464,2621.5,2620.9,3.81539]
[1723836345967,3.81464,2621.5,2621.0,3.81533]
[1723836346542,3.81464,2621.5,2620.9,3.81539]
[1723836346543,7.62933,2621.5,2620.9,3.81539]
[1723836347073,3.81464,2621.5,2621.0,3.81531]
[1723836347377,7.62934,2621.5,2620.9,5.558068]
[1723836347520,3.81464,2621.5,2620.9,5.557988]
[1723836347720,3.81446,2621.6,2621.0,3.81525]
[1723836347921,3.81446,2621.6,2621.0,4.3710488]
[1723836348142,3.81464,2621.5,2621.0,4.3710488]
[1723836348460,3.81464,2621.5,2621.0,3.81525]
[1723836348628,3.81464,2621.5,2620.9,1.742598]
[1723836348837,3.81464,2621.5,2621.0,3.81532]
[1723836349038,3.81447,2621.6,2621.0,7.63055]
[1723836349248,3.81447,2621.6,2621.0,8.1862818]
[1723836349748,3.81447,2621.6,2621.0,4.3710218]
[1723836350120,3.81461,2621.5,2621.0,4.3710218]
[1723836350466,3.81461,2621.5,2620.9,5.558068]
[1723836350624,3.81461,2621.5,2621.0,3.81532]
[1723836351067,6.1711,2621.7,2621.2,3.81501]
[1723836351280,3.81403,2621.9,2621.3,7.62966]
[1723836351609,6.27478,2622.0,2621.4,3.81468]
[1723836351811,3.81403,2621.9,2621.4,3.81468]
[1723836353324,3.81403,2621.9,2621.3,8.641986]
[1723836353478,3.81403,2621.9,2621.3,4.827166]
[1723836354327,3.81403,2621.9,2621.4,0.79782868]
[1723836354522,7.62813,2621.9,2621.4,0.06572208]
[1723836354835,3.81403,2621.9,2621.4,0.06572208]
[1723836355492,3.81403,2621.9,2621.4,3.88046208]
[1723836355854,3.81403,2621.9,2621.4,0.06572208]
[1723836356384,3.81384,2622.1,2621.5,3.81453]
[1723836356586,3.81384,2622.1,2621.5,3.88014483]
[1723836356784,7.74308,2622.6,2621.5,3.88014483]
[1723836356785,6.27415,2622.5,2621.6,2.4939]
[1723836357137,3.81295,2622.7,2622.1,3.81372]
[1723836357424,3.81295,2622.7,2622.2,0.381372]
[1723836357639,3.81295,2622.7,2622.2,0.06486168]
[1723836358342,3.81307,2622.6,2622.2,0.06486168]
[1723836359395,0.06631022,2623.0,2622.2,3.87836168]
[1723836359396,3.81267,2622.9,2622.2,3.87836168]
[1723836359600,3.81267,2622.9,2622.4,3.81329]
[1723836359832,3.81265,2622.9,2622.4,3.81329]
[1723836360041,3.81265,2622.9,2622.5,0.06450566]
[1723836360323,7.62533,2622.9,2622.3,0.63722617]
[1723836360483,2.52721022,2623.0,2622.4,4.25835862]
[1723836360833,2.52721022,2623.0,2621.9,3.81395]
[1723836360834,3.81207,2623.3,2622.7,6.30675]
[1723836361036,3.81207,2623.3,2622.8,3.81269]
[1723836361242,3.81207,2623.3,2622.8,3.87687418]
[1723836361584,3.81177,2623.5,2622.8,3.87682418]
[1723836361891,6.27245,2623.6,2623.1,3.81218]
[1723836362134,6.27245,2623.6,2622.9,3.81243]
[1723836362135,2.4609,2623.6,2622.9,3.81243]
[1723836362312,2.4609,2623.6,2623.2,0.06371]
[1723836362515,3.81149,2623.7,2623.2,0.06371]
[1723836362715,7.80748084,2623.9,2623.2,0.06371]
[1723836362716,3.87748084,2623.9,2623.2,3.81205]
[1723836362928,4.90431892,2623.9,2623.3,3.87539971]
[1723836363142,3.8112,2623.9,2623.3,3.87539971]
[1723836363583,3.81136,2623.8,2623.3,0.06342971]
[1723836363927,3.81141,2623.7,2623.4,0.06327354]
[1723836364095,3.81141,2623.7,2623.2,2.4939]
[1723836364301,3.81141,2623.7,2623.3,0.06338064]
[1723836364503,3.81156,2623.6,2623.0,11.62182776]
[1723836364726,3.81121,2623.9,2623.1,3.87572196]
[1723836364922,3.81121,2623.9,2623.3,3.81198]
[1723836365329,3.81121,2623.9,2623.4,0.06326149]
[1723836365513,3.81097,2624.0,2623.4,2.41826149]
[1723836365940,7.62233,2623.9,2623.4,2.41826149]
[1723836366169,3.81112,2623.9,2623.4,2.41826149]
[1723836367014,2.4834,2623.8,2623.4,0.06326149]
[1723836367320,3.8109,2624.1,2623.4,2.355]
[1723836367635,3.8109,2624.1,2623.6,3.81149]
[1723836367835,2.4834,2624.2,2623.6,3.81149]
[1723836368062,2.4834,2624.2,2623.5,3.87482354]
[1723836368063,2.4834,2624.2,2623.7,3.87432937]
[1723836368355,3.81068,2624.2,2623.7,3.87432937]
[1723836368757,3.81083,2624.1,2623.7,0.06293937]
[1723836368911,7.62176,2624.1,2623.5,3.81161]
[1723836369255,7.62176,2624.1,2623.8,0.06283231]
[1723836369256,3.81083,2624.1,2623.8,0.06283231]
[1723836369458,3.81083,2624.1,2623.6,0.616662]
[1723836369617,3.81083,2624.1,2623.9,0.06272525]
[1723836369808,3.81083,2624.1,2623.5,3.81161]
[1723836369809,7.62175,2624.1,2623.5,3.81161]
[1723836370010,3.81083,2624.1,2624.0,0.06261819]
[1723836370355,3.81063,2624.3,2624.0,0.06261819]
[1723836370653,3.81083,2624.1,2623.6,3.81152]
[1723836370954,3.81062,2624.3,2623.7,3.81141]
[1723836371172,3.81062,2624.3,2623.8,0.381141]
[1723836371680,3.81076,2624.2,2623.5,7.62316]
[1723836371877,3.81076,2624.2,2623.6,3.81154]
[1723836372029,3.81084,2624.1,2623.7,0.762311]